bitfinex-derivatives/quotes_ETHF0:USTF0_20250727
["timestamp","ask_amount","ask_price","bid_price","bid_amount"]
[1753591752600,1.61828,3784.5,3784.4,2.94379]
[1753591753101,1.61828,3784.5,3784.4,2.4155]
[1753591754400,1.61828,3784.5,3784.4,2.94379]
[1753591754601,1.61828,3784.5,3784.4,2.4155]
[1753591755404,1.61828,3784.5,3784.4,2.94379]
[1753591755700,1.61828,3784.5,3784.4,2.4155]
[1753591757307,1.61828,3784.5,3784.4,2.94379]
[1753591758003,1.61828,3784.5,3784.4,2.4155]
[1753591758206,1.61828,3784.5,3784.4,2.94379]
[1753591759207,0.52828,3784.5,3784.4,2.94379]
[1753591759705,0.52828,3784.5,3784.4,2.4155]
[1753591759907,1.61828,3784.5,3784.4,2.4155]
[1753591761708,1.61828,3784.5,3784.4,2.94379]
[1753591761909,1.19878,3784.5,3784.4,2.94379]
[1753591763706,3.2078,3784.8,3784.7,0.4432]
[1753591763908,0.4195,3785.2,3784.1,1.32084]
[1753591763909,4.82598,3785.2,3785.1,2.4118]
[1753591764110,5.63868471,3785.2,3785.1,2.4118]
[1753591765014,5.89628471,3785.2,3785.1,2.4118]
[1753591766615,6.18716032,3785.2,3785.1,2.4118]
[1753591767012,5.63868471,3785.2,3785.1,2.4118]
[1753591767914,5.21918471,3785.2,3785.1,2.4118]
[1753591768114,4.54868471,3785.2,3785.1,2.4118]
[1753591768610,5.23378471,3785.2,3785.1,2.4118]
[1753591771123,4.54868471,3785.2,3785.1,2.4118]
[1753591771514,5.86488471,3785.2,3785.1,2.4118]
[1753591771825,5.61898471,3785.2,3785.1,2.4118]
[1753591774721,5.86488471,3785.2,3785.1,0.4581]
[1753591775423,5.05218,3785.2,3785.1,2.0597]
[1753591775621,5.05218,3785.2,3785.1,2.4423]
[1753591775818,5.8643935,3785.2,3785.1,2.4423]
[1753591776019,5.05218,3785.2,3785.1,2.4423]
[1753591777922,5.05218,3785.2,3785.1,2.0114]
[1753591779025,5.05218,3785.2,3785.1,2.4423]
[1753591782132,5.86465188,3785.2,3785.1,2.4423]
[1753591782923,5.86465188,3785.2,3785.1,0.4581]
[1753591783129,1.84442,3784.9,3784.8,0.4241]
[1753591783330,23.77589188,3784.9,3784.8,0.4241]
[1753591783832,23.77589188,3784.9,3784.8,0.984]
[1753591784831,23.77589188,3784.9,3784.8,0.4241]
[1753591787833,23.77589188,3784.9,3784.8,0.984]
[1753591788028,23.77589188,3784.9,3784.8,1.4149]
[1753591790044,23.77589188,3784.9,3784.8,2.4083]
[1753591794632,23.52999188,3784.9,3784.8,2.4083]
[1753591798645,23.53109188,3784.9,3784.8,2.4083]
[1753591799245,23.76129188,3784.9,3784.8,2.4083]
[1753591800141,23.76129188,3784.9,3784.8,1.4658]
[1753591800340,1.16902,3784.2,3784.1,1.8324]
[1753591800540,25.87592,3784.2,3784.1,1.5456]
[1753591800740,25.87592,3784.2,3784.1,2.4126]
[1753591803447,25.49292,3784.2,3784.1,2.4126]
[1753591803746,25.49182,3784.2,3784.1,2.4126]
[1753591805747,25.87592,3784.2,3784.1,2.4126]
[1753591812255,26.68884032,3784.2,3784.1,2.4126]
[1753591812757,25.87592,3784.2,3784.1,2.4126]
[1753591813059,26.68879098,3784.2,3784.1,2.4126]
[1753591813249,25.87592,3784.2,3784.1,2.4126]
[1753591813554,25.87592,3784.2,3784.1,1.4367]
[1753591813848,0.938,3784.0,3783.2,0.01850261]
[1753591814158,24.67246258,3783.9,3783.8,1.388]
[1753591814357,27.87926258,3783.9,3783.8,1.388]
[1753591814856,27.87911605,3783.9,3783.8,1.388]
[1753591815951,27.87911605,3783.9,3783.8,2.4126]
[1753591817447,27.06636,3783.9,3783.8,2.4126]
[1753591822556,24.84716,3783.9,3783.8,2.4126]
[1753591828062,24.3188,3783.9,3783.8,2.4126]
[1753591828363,21.111,3783.9,3783.8,2.94098]
[1753591829459,21.63936,3783.9,3783.8,2.94098]
[1753591831265,3.2078,3784.3,3784.2,2.93372]
[1753591831566,0.2838,3784.9,3784.2,2.93372]
[1753591831567,21.63326,3784.7,3784.5,2.93368]
[1753591831766,21.63326,3784.7,3784.6,0.96]
[1753591831966,21.63326,3784.7,3784.6,2.93367]
[1753591832361,21.63325,3784.7,3784.6,2.4054]
[1753591832966,21.63325,3784.7,3784.6,2.93367]
[1753591833464,21.63325,3784.7,3784.6,2.4054]
[1753591834166,21.105,3784.7,3784.6,2.93366]
[1753591834364,4.2406,3785.1,3784.9,1.48822]
[1753591834666,21.103,3785.0,3784.9,2.93362]
[1753591836359,3.2078,3785.1,3785.0,1.48821]
[1753591836563,3.2078,3785.1,3785.0,2.93361]
[1753591837272,3.2078,3785.5,3785.4,2.93355]
[1753591838565,3.496,3785.5,3785.4,2.93355]
[1753591838765,4.479,3785.5,3785.4,2.93355]
[1753591838965,6.16364,3785.5,3785.4,2.4054]
[1753591839165,6.16364,3785.5,3785.4,2.93355]
[1753591839872,6.16364,3785.5,3785.4,2.4054]
[1753591840061,6.16364,3785.5,3785.4,0.2855]
[1753591840366,3.2078,3785.5,3785.4,1.4264]
[1753591840572,3.2078,3785.5,3785.4,2.93355]
[1753591840770,0.2,3785.9,3785.8,2.9335]
[1753591841461,22.65779,3786.6,3785.8,9.6532]
[1753591841661,22.19159,3786.6,3786.5,2.4054]
[1753591841864,1.09459,3786.6,3786.5,2.9334]
[1753591842071,1.09459,3786.6,3786.5,2.4054]
[1753591842763,1.49219,3786.6,3786.5,2.4054]
[1753591842967,2.95569,3786.6,3786.5,2.4054]
[1753591845773,6.16349,3786.6,3786.5,2.4054]
[1753591848673,2.95569,3786.6,3786.5,2.4054]
[1753591855978,1.9615,3786.6,3786.5,2.9334]
[1753591856178,0.2882,3786.6,3786.5,2.4054]
[1753591856379,2.4277,3786.6,3786.5,2.4054]
[1753591856578,2.95569,3786.6,3786.5,2.9334]
[1753591857581,2.4277,3786.6,3786.5,2.9334]
[1753591858080,1.9615,3786.6,3786.5,2.9334]
[1753591858284,0.2882,3786.6,3786.5,2.9334]
[1753591859389,3.2078,3786.7,3786.6,0.92579]
[1753591859586,3.2078,3786.7,3786.6,2.90819]
[1753591859787,4.8578,3786.7,3786.6,2.90819]
[1753591859986,5.5933,3786.7,3786.6,2.90819]
[1753591860283,2.3855,3786.7,3786.6,2.90819]
[1753591863089,5.5933,3786.7,3786.6,2.90819]
[1753591863291,2.91347,3786.7,3786.6,2.90819]
[1753591863593,2.3855,3786.7,3786.6,2.90819]
[1753591867692,2.3855,3786.7,3786.6,0.52799]
[1753591868191,2.3855,3786.7,3786.6,2.51039]
[1753591868382,2.3855,3786.7,3786.6,2.90819]
[1753591870284,3.20357555,3786.7,3786.6,2.90819]
[1753591875389,2.3855,3786.7,3786.6,2.90819]
[1753591875792,3.20766196,3786.7,3786.6,2.90819]
[1753591876395,2.3855,3786.7,3786.6,2.90819]
[1753591879497,2.3855,3787.0,3786.9,2.90814]
[1753591879689,3.20769436,3787.0,3786.9,2.90814]
[1753591880396,2.3855,3787.0,3786.9,2.90814]
[1753591883195,1.9645,3787.0,3786.9,2.47844]
[1753591883400,2.3855,3787.0,3786.9,2.90814]
[1753591885195,2.3855,3787.0,3786.9,0.52794]
[1753591885401,2.3855,3787.0,3786.9,2.90814]
[1753591892797,0.5279,3787.2,3787.1,0.52792]
[1753591893005,3.23306332,3787.2,3787.1,2.89052]
[1753591896207,3.76096332,3787.2,3787.1,2.89052]
[1753591896403,0.6714,3787.0,3786.9,2.89054]
[1753591896707,2.4031,3787.0,3786.9,2.89054]
[1753591899705,3.2078,3787.1,3787.0,0.52793]
[1753591900009,3.2078,3787.1,3787.0,2.89053]
[1753591901503,4.1986,3787.1,3787.0,2.89053]
[1753591901706,5.6109,3787.1,3787.0,2.89053]
[1753591903207,5.6109,3787.1,3787.0,0.52793]
[1753591903507,5.6109,3787.1,3787.0,0.95063]
[1753591903706,5.6109,3787.1,3787.0,2.89053]
[1753591904307,2.4031,3787.1,3787.0,2.89053]
[1753591911814,2.4031,3787.1,3787.0,0.81163]
[1753591912018,0.5784,3786.9,3786.6,0.5361]
[1753591912215,3.2078,3787.1,3786.8,1.9425]
[1753591912413,4.1986,3787.1,3787.0,2.47043]
[1753591912614,3.2078,3787.1,3787.0,2.47043]
[1753591912814,3.2078,3787.1,3787.0,2.89053]
[1753591913521,5.6109,3787.1,3787.0,2.89053]
[1753591914321,2.4031,3787.1,3787.0,2.89053]
[1753591915022,5.6109,3787.1,3787.0,2.89053]
[1753591915723,2.4031,3787.1,3787.0,2.89053]
[1753591921733,3.2078,3787.7,3787.6,0.9368]
[1753591922028,4.57053767,3787.7,3787.6,2.84415]
[1753591922430,6.91663767,3787.7,3787.6,1.9196]
[1753591922623,2.87396,3787.5,3787.4,2.3163]
[1753591922824,2.87396,3787.5,3787.4,2.84417]
[1753591923028,2.3461,3787.5,3787.4,2.84417]
[1753591923226,2.87396,3787.5,3787.4,2.84417]
[1753591923429,2.3461,3787.5,3787.4,2.84417]
[1753591923629,2.87396,3787.5,3787.4,2.84417]
[1753591923823,2.3461,3787.5,3787.4,2.84417]
[1753591929641,1.1215,3787.5,3787.4,2.84417]
[1753591929940,1.9764,3787.5,3787.4,2.84417]
[1753591930140,2.3461,3787.5,3787.4,2.84417]
[1753591931439,2.87396,3787.5,3787.4,2.84417]
[1753591932741,2.87396,3787.5,3787.4,2.3163]
[1753591933038,2.87396,3787.5,3787.4,2.84417]
[1753591933339,2.87396,3787.5,3787.4,2.3163]
[1753591933740,2.87396,3787.5,3787.4,2.84417]
[1753591934541,2.87396,3787.5,3787.4,2.3163]
[1753591934836,3.2078,3787.6,3787.4,2.3163]
[1753591935037,3.2078,3787.6,3787.5,1.46466]
[1753591935340,3.2078,3787.6,3787.5,2.84416]
[1753591935730,1.421,3787.7,3787.6,1.46465]
[1753591935937,0.9848,3787.7,3787.6,2.84415]
[1753591936139,3.07391,3787.9,3787.8,0.9368]
[1753591936331,2.5461,3787.9,3787.8,2.84412]
[1753591936536,0.4682,3787.9,3787.8,2.84412]
[1753591937144,0.2,3787.9,3787.8,2.84412]
[1753591937340,1.621,3787.9,3787.8,2.84412]
[1753591937541,1.1848,3787.9,3787.8,2.84412]
[1753591939043,0.2,3787.9,3787.8,2.84412]
[1753591941140,0.2,3787.9,3787.8,7.84412]
[1753591942439,0.2,3787.9,3787.8,2.84412]
[1753591948445,2.5082,3787.9,3787.8,0.5824]
[1753591948646,3.036,3787.9,3787.8,0.5824]
[1753591949146,3.036,3787.9,3787.8,1.9597]
[1753591949445,3.036,3787.9,3787.8,0.5824]
[1753591949647,2.83603,3787.7,3787.6,2.81125]
[1753591950043,1.08057,3787.4,3787.3,2.2834]
[1753591950247,1.08057,3787.4,3787.2,3.2078]
[1753591950248,0.9247,3787.1,3787.0,2.2834]
[1753591950548,2.3082,3787.3,3787.2,1.434]
[1753591950850,2.3082,3787.3,3787.2,2.8113]
[1753591951344,0.2,3787.9,3786.8,3.2078]
[1753591951345,1.471,3787.6,3787.3,0.5217]
[1753591951545,0.9247,3787.4,3787.3,0.9876]
[1753591951745,1.8653,3787.4,3787.3,2.42159]
[1753591952144,1.8653,3787.4,3787.3,2.81129]
[1753591952747,1.8653,3787.4,3787.3,6.01909]
[1753591952947,1.8653,3787.4,3787.3,2.81129]
[1753591953251,2.3082,3787.4,3787.3,2.81129]
[1753591954941,2.3082,3787.4,3787.3,2.42159]
[1753591957955,2.3082,3787.4,3787.3,2.81129]
[1753591959058,2.3082,3787.4,3787.3,6.01909]
[1753591959354,1.319,3787.4,3787.3,6.01909]
[1753591959864,0.2,3787.9,3787.8,0.5462]
[1753591959865,1.1406,3787.9,3787.8,0.5462]
[1753591960156,1.5835,3787.9,3787.8,2.81122]
[1753591960350,2.1362,3787.9,3787.8,2.81122]
[1753591960955,2.5082,3787.9,3787.8,2.81122]
[1753591961651,2.5082,3787.9,3787.8,0.52782]
[1753591962256,2.5082,3787.9,3787.8,1.04952]
[1753591962555,2.5082,3787.9,3787.8,2.81122]
[1753591967959,0.2,3787.9,3787.8,2.81122]
[1753591969160,1.9362,3788.3,3788.2,2.81116]
[1753591969463,2.3082,3788.3,3788.2,2.81116]
[1753591972562,1.7619,3788.3,3788.2,2.81116]
[1753591973058,0.52763,3789.2,3788.8,0.52768]
[1753591973365,2.3082,3788.9,3788.8,2.81108]
[1753591974563,2.83587,3788.9,3788.8,2.81108]
[1753591974760,2.83587,3788.9,3788.8,2.2834]
[1753591975758,2.3082,3788.9,3788.6,0.8556]
[1753591975964,2.83589,3788.7,3788.6,1.1414]
[1753591976264,2.83592,3788.5,3788.4,1.6073]
[1753591976566,2.83592,3788.5,3788.4,1.1414]
[1753591976968,2.83592,3788.5,3788.4,1.6073]
[1753591977372,2.83592,3788.5,3788.4,2.52474]
[1753591978075,2.83592,3788.5,3788.4,0.3599]
[1753591978372,2.83592,3788.5,3788.4,0.88764]
[1753591978572,2.83592,3788.5,3788.4,0.9191]
[1753591979166,1.46195,3788.3,3788.2,2.87276]
[1753591979363,2.3404,3788.3,3788.2,1.20676]
[1753591979664,0.9809,3788.3,3788.2,2.87275]
[1753591979869,1.9085,3788.6,3788.5,2.87272]
[1753591980068,2.3404,3788.6,3788.5,2.87272]
[1753591980269,2.3404,3788.6,3788.5,1.2739]
[1753591980469,2.3404,3788.6,3788.5,1.36432]
[1753591980776,2.3404,3788.6,3788.5,2.87272]
[1753591981768,2.3404,3788.6,3788.5,0.52772]
[1753591981971,1.7925,3788.3,3788.2,2.87276]
[1753591982176,0.018,3789.3,3788.3,2.87275]
[1753591982177,2.3404,3788.4,3788.3,2.87275]
[1753591983274,2.3404,3788.4,3788.3,2.345]
[1753591983666,2.86814,3788.4,3788.3,2.345]
[1753591983881,2.86814,3788.4,3788.3,1.2087]
[1753591984676,3.2078,3788.7,3787.8,1.92591]
[1753591984677,2.3404,3788.2,3787.8,1.92591]
[1753591984878,1.46199,3788.0,3787.9,0.5592]
[1753591985180,2.3404,3788.0,3787.9,0.5592]
[1753591985377,2.86819,3788.0,3787.9,2.0476]
[1753591985675,2.3404,3788.0,3787.9,2.0476]
[1753591985878,2.86819,3788.0,3787.9,2.0476]
[1753591986071,2.86819,3788.0,3787.9,1.646]
[1753591986381,2.3404,3787.7,3787.6,2.0476]
[1753591986576,2.3404,3787.7,3787.6,2.57545]
[1753591986874,2.86823,3787.7,3787.6,2.345]
[1753591987076,2.3404,3787.5,3787.4,2.17387]
[1753591987476,2.3404,3787.5,3787.4,2.57547]
[1753591987775,2.3404,3787.5,3787.4,2.87287]
[1753591992475,0.9342,3787.5,3787.0,38.013]
[1753591992774,2.3404,3787.1,3787.0,39.93903]
[1753591993179,2.3404,3787.1,3787.0,2.87293]
[1753591996881,1.7925,3787.9,3787.8,2.345]
[1753591997183,2.3404,3787.9,3787.8,2.87282]
[1753591997783,2.3404,3787.9,3787.8,1.73652]
[1753591997983,2.3404,3787.9,3787.8,0.52782]
[1753591999079,1.7925,3787.9,3787.8,2.87282]
[1753591999276,2.3404,3787.9,3787.8,2.87282]
[1753591999986,2.3404,3787.9,3787.8,2.03392]
[1753592001586,2.3404,3787.9,3787.8,2.87282]
[1753592005795,1.3606,3787.9,3787.8,0.52782]
[1753592005991,2.3404,3787.9,3787.8,0.52782]
[1753592006193,2.3404,3787.9,3787.8,2.87282]
[1753592015500,0.52777,3788.2,3788.0,0.52778]
[1753592015705,1.9178,3788.1,3788.0,2.77829]
[1753592015906,2.2624,3788.1,3788.0,2.77829]
[1753592018403,2.79018,3788.1,3788.0,0.5086]
[1753592018604,2.2624,3788.1,3788.0,0.52779]
[1753592019007,2.2624,3788.1,3788.0,2.47439]
[1753592019209,2.2624,3788.1,3788.0,2.77829]
[1753592020503,3.2078,3788.4,3788.2,0.52776]
[1753592020709,3.2078,3788.4,3788.3,2.77825]
[1753592020908,5.1256,3788.4,3788.3,2.77825]
[1753592021107,5.4702,3788.4,3788.3,2.77825]
[1753592021704,1.635,3788.7,3788.6,2.77821]
[1753592021908,2.2624,3788.7,3788.6,2.77821]
[1753592023204,0.8384,3788.9,3788.8,0.52768]
[1753592023405,1.3845,3788.9,3788.8,2.26958]
[1753592023712,1.9178,3788.9,3788.8,2.77818]
[1753592024211,2.2624,3788.9,3788.8,2.77818]
[1753592027018,1.3845,3788.9,3788.8,2.77818]
[1753592027312,3.2078,3789.0,3788.9,2.77816]
[1753592027507,3.8801,3789.0,3788.9,2.77816]
[1753592027718,4.5923,3789.0,3788.9,2.77816]
[1753592027910,5.1256,3789.0,3788.9,2.77816]
[1753592028112,3.2078,3789.0,3788.9,2.77816]
[1753592028416,0.018,3789.3,3789.2,2.77813]
[1753592032324,3.4711,3789.8,3789.7,2.77806]
[1753592032820,5.1256,3789.8,3789.7,2.77806]
[1753592033019,5.4702,3789.8,3789.7,2.77806]
[1753592034016,2.2624,3789.8,3789.7,2.77806]
[1753592035022,5.4702,3789.8,3789.7,1.37626]
[1753592035218,5.4702,3789.8,3789.7,2.47416]
[1753592035421,2.2624,3789.8,3789.7,2.77806]
[1753592037010,1.7291,3789.8,3789.7,2.77806]
[1753592037211,2.2624,3789.8,3789.7,2.77806]
[1753592039521,1.0375,3789.9,3789.8,2.76574]
[1753592039720,2.4968,3789.9,3789.8,2.76574]
[1753592049620,1.9638,3789.9,3789.8,2.76574]
[1753592049819,2.4968,3789.9,3789.8,2.76574]
[1753592050125,1.6054,3789.9,3789.8,2.76574]
[1753592050323,0.2,3789.9,3789.8,2.76574]
[1753592050715,3.2078,3790.2,3790.1,2.7657]
[1753592050716,4.1701,3790.2,3790.1,2.7657]
[1753592050926,5.5046,3790.2,3790.1,2.7657]
[1753592052821,2.2968,3790.2,3790.1,2.7657]
[1753592053023,1.7638,3790.2,3790.1,2.7657]
[1753592053223,1.4054,3790.4,3790.3,2.76567]
[1753592053424,2.2968,3790.6,3790.5,2.76564]
[1753592061029,2.2968,3790.6,3790.5,1.03084]
[1753592061835,2.2968,3790.6,3790.5,2.76564]
[1753592062537,1.4054,3790.6,3790.5,2.76564]
[1753592062728,2.2968,3790.6,3790.5,2.76564]
[1753592063237,2.2968,3790.6,3790.5,1.64314]
[1753592063535,2.2968,3790.6,3790.5,2.46794]
[1753592063937,2.2968,3790.6,3790.5,2.76564]
[1753592064139,3.6022,3790.7,3790.6,1.43743]
[1753592064340,4.3056,3790.7,3790.6,2.76563]
[1753592065641,3.2078,3790.7,3790.6,2.76563]
[1753592066535,0.8375,3791.4,3791.3,1.3282]
[1753592066736,1.0978,3791.4,3791.3,2.37223]
[1753592067337,1.0978,3791.4,3791.3,2.76553]
[1753592068038,2.2417,3791.4,3791.3,2.76553]
[1753592068240,2.2417,3791.4,3791.3,1.46223]
[1753592068640,2.2417,3791.4,3791.3,2.06343]
[1753592068841,2.2417,3791.4,3791.3,2.45913]
[1753592069637,2.2417,3791.4,3791.3,2.76323]
[1753592070336,0.8375,3791.4,3791.3,2.76323]
[1753592070536,2.2424,3791.4,3791.3,2.76323]
[1753592072239,0.2679,3791.4,3791.3,2.76323]
[1753592072443,1.7349,3791.6,3791.5,1.43261]
[1753592072643,2.2417,3791.6,3791.5,2.77621]
[1753592073543,5.97679,3791.6,3791.5,1.4008]
[1753592073745,5.97679,3791.6,3791.5,1.39419899]
[1753592074045,5.97679,3791.6,3791.5,1.61740899]
[1753592074437,5.97679,3791.6,3791.5,0.52731]
[1753592074640,5.4495,3791.6,3791.2,0.4955]
[1753592074844,2.2417,3791.2,3791.1,0.52736]
[1753592075044,5.4495,3791.2,3791.1,1.02286]
[1753592075240,2.2417,3791.2,3791.1,2.77626]
[1753592076646,1.09596,3791.1,3791.0,0.52737]
[1753592076841,3.2078,3791.6,3790.5,0.8912]
[1753592076842,1.9122,3790.6,3790.5,0.8912]
[1753592077044,1.9122,3790.6,3790.4,1.72045]
[1753592077045,2.2417,3790.5,3790.4,1.72045]
[1753592077245,1.93234,3790.5,3790.4,2.07655]
[1753592077443,2.76914,3790.5,3790.4,2.07655]
[1753592077647,2.76914,3790.5,3790.4,2.47225]
[1753592077845,2.2417,3790.5,3790.4,1.62416]
[1753592078149,2.2417,3790.5,3790.4,2.77636]
[1753592078942,1.09609,3790.2,3790.1,1.5887]
[1753592079260,2.2417,3790.2,3790.1,2.7764]
[1753592080451,2.76919,3790.2,3790.1,2.2489]
[1753592080752,2.2417,3789.9,3789.8,2.2489]
[1753592080953,2.2417,3789.9,3789.8,2.77644]
[1753592082048,1.96176,3789.7,3789.6,0.6012]
[1753592082255,2.76928,3789.5,3789.4,1.0967]
[1753592082847,2.76933,3789.2,3789.1,2.2489]
[1753592083048,2.76933,3789.2,3789.1,1.4008]
[1753592083446,2.2417,3789.2,3789.1,1.4008]
[1753592083650,2.2417,3789.2,3789.1,1.8532]
[1753592083853,2.2417,3789.2,3789.1,2.2489]
[1753592084052,2.2417,3789.2,3789.1,2.77654]
[1753592086152,4.5514,3789.5,3789.1,2.2489]
[1753592086353,0.9444,3789.5,3789.4,2.7765]
[1753592086760,1.4054,3789.5,3789.4,2.7765]
[1753592087070,1.8659,3789.8,3789.7,1.43286]
[1753592087261,2.2417,3789.8,3789.7,2.77646]
[1753592087459,0.5686,3789.8,3789.7,2.77646]
[1753592089066,1.4054,3789.8,3789.7,2.77646]
[1753592091265,2.2417,3789.8,3789.7,2.77646]
[1753592092270,1.7349,3789.8,3789.7,2.77646]
[1753592094162,4.1522,3790.4,3790.3,0.6012]
[1753592094364,4.9885,3790.4,3790.3,0.52747]
[1753592094766,4.9885,3790.4,3790.3,2.07657]
[1753592094767,5.4495,3790.4,3790.3,2.07657]
[1753592094968,5.4495,3790.4,3789.7,1.31889]
[1753592095268,2.2417,3790.3,3790.2,0.9053]
[1753592095467,2.2417,3790.3,3790.2,1.82849]
[1753592097062,2.2417,3790.3,3790.2,2.54859]
[1753592098464,1.1833,3790.3,3790.2,2.54859]
[1753592099067,3.2078,3790.9,3790.8,0.6305]
[1753592099273,3.10746721,3790.9,3790.8,1.1696]
[1753592099474,3.10746721,3790.9,3790.8,1.1361]
[1753592099668,2.2748,3790.9,3790.8,1.6055]
[1753592099861,2.2748,3790.9,3790.8,0.7866]
[1753592100368,2.2748,3790.9,3790.1,0.52749]
[1753592100369,0.9043,3790.3,3790.1,0.52749]
[1753592100573,2.2748,3790.2,3790.1,0.52749]
[1753592100773,2.2748,3790.2,3790.1,1.53599]
[1753592100967,1.7225,3790.5,3790.4,1.06766]
[1753592101175,1.8382,3790.5,3790.4,2.56116]
[1753592101671,2.2748,3790.7,3790.6,2.16643]
[1753592102073,2.2748,3790.7,3790.6,2.56113]
[1753592103070,2.2748,3790.4,3790.0,3.6772]
[1753592103373,2.2748,3790.4,3790.3,0.52747]
[1753592103971,2.2748,3790.4,3790.3,0.78667]
[1753592104172,2.2748,3790.4,3790.3,1.60557]
[1753592104371,2.2748,3790.4,3790.3,1.88547]
[1753592104969,2.2748,3790.4,3790.3,2.16647]
[1753592106273,2.2748,3790.4,3790.3,2.56117]
[1753592107571,4.7532,3790.9,3790.8,0.6087]
[1753592107772,4.63949,3790.9,3790.6,0.52742]
[1753592107972,2.2748,3790.4,3790.3,1.88547]
[1753592108971,2.2748,3790.4,3790.3,2.16647]
[1753592109276,2.2748,3790.4,3790.3,2.56117]
[1753592111579,2.2748,3790.4,3790.3,2.16647]
[1753592111770,2.2748,3790.4,3790.3,0.52747]
[1753592112882,0.9043,3790.4,3789.8,0.3947]
[1753592113076,2.2748,3789.9,3789.8,1.69714]
[1753592115972,2.2748,3789.9,3789.8,1.06664]
[1753592116183,2.2748,3789.9,3789.8,0.78674]
[1753592116579,2.2748,3789.9,3789.8,1.06664]
[1753592116883,2.2748,3789.9,3789.8,1.69714]
[1753592117080,2.2748,3789.9,3789.8,2.56124]
[1753592117680,1.8382,3789.9,3789.8,2.56124]
[1753592118381,0.4366,3790.1,3790.0,2.77801]
[1753592118581,0.7294,3790.1,3790.0,2.77801]
[1753592120084,0.7294,3790.1,3790.0,5.98581]
[1753592120284,1.3409,3790.1,3790.0,5.98581]
[1753592120483,1.3409,3790.1,3790.0,2.77801]
[1753592121082,1.8932,3790.1,3790.0,2.77801]
[1753592121282,2.2748,3790.1,3790.0,2.77801]
[1753592122789,2.2748,3790.1,3790.0,2.42851]
[1753592123089,2.2748,3790.1,3789.5,3.2078]
[1753592123090,1.7225,3789.8,3789.7,0.52756]
[1753592123287,0.9043,3789.3,3789.2,0.3947]
[1753592123590,2.2748,3789.3,3789.2,2.49713]
[1753592123886,2.2748,3789.3,3789.2,0.52763]
[1753592124282,2.2748,3789.3,3789.2,0.92233]
[1753592124679,2.2748,3789.3,3789.2,1.69313]
[1753592124984,1.8932,3789.3,3789.2,2.77813]
[1753592125585,1.3409,3789.3,3789.2,2.77813]
[1753592127786,1.8462,3789.3,3789.2,2.77813]
[1753592127978,2.2485,3789.3,3789.2,2.04263]
[1753592128177,2.2485,3789.3,3789.2,0.92233]
[1753592129291,2.2485,3789.3,3789.2,1.19743]
[1753592130089,2.2485,3789.3,3789.2,1.71793]
[1753592134894,2.2485,3789.3,3789.2,2.07273]
[1753592136095,2.77611,3789.3,3789.2,0.3947]
[1753592136291,0.2667,3789.1,3789.0,1.1504]
[1753592136489,0.9112,3789.1,3789.0,1.15755]
[1753592136690,2.2472,3789.1,3789.0,1.61655]
[1753592136885,2.2472,3789.1,3789.0,1.92845]
[1753592137090,2.2472,3789.1,3789.0,2.84765]
[1753592138396,2.2472,3789.1,3789.0,2.07675]
[1753592139997,0.616,3788.8,3788.7,0.92639]
[1753592140297,2.2472,3788.8,3788.7,0.92639]
[1753592141200,2.2472,3788.8,3788.7,2.84769]
[1753592141502,0.52763,3789.2,3788.4,1.31934]
[1753592141696,2.2472,3789.2,3789.1,0.3987]
[1753592141999,2.2472,3789.2,3789.1,1.72194]
[1753592142495,2.2472,3789.2,3789.1,2.53574]
[1753592143200,2.2472,3789.2,3789.1,0.6738]
[1753592143501,2.77483,3789.2,3789.1,0.92634]
[1753592144601,2.2472,3789.2,3789.1,2.53574]
[1753592144997,2.77483,3789.2,3789.1,2.53574]
[1753592145402,2.2472,3789.2,3789.1,2.53574]
[1753592146002,2.2472,3789.2,3789.1,2.84764]
[1753592146196,2.2472,3789.2,3789.1,2.44894]
[1753592146502,1.3396,3789.2,3789.1,2.84764]
[1753592147100,1.8449,3789.2,3789.1,2.84764]
[1753592154407,1.3396,3789.2,3789.1,2.84764]
[1753592154604,1.0729,3789.2,3789.1,2.84764]
[1753592155807,3.2078,3789.3,3789.2,1.46942]
[1753592156003,3.2078,3789.3,3789.2,2.84762]
[1753592156408,3.6362,3789.3,3789.2,2.84762]
[1753592156609,1.3396,3789.9,3789.8,1.4623]
[1753592156811,1.8449,3789.9,3789.8,2.84754]
[1753592157911,1.0729,3789.9,3789.8,2.84754]
[1753592158402,0.8516,3790.1,3790.0,1.45971]
[1753592158602,1.2901,3790.1,3790.0,2.87301]
[1753592159106,0.7492,3790.3,3790.2,1.45969]
[1753592159306,0.7492,3790.3,3790.2,2.87299]
[1753592159808,1.9182,3790.3,3790.2,2.87299]
[1753592161615,2.3161,3790.3,3790.2,2.87299]
[1753592161911,1.9182,3790.3,3790.2,2.87299]
[1753592162112,3.2078,3791.3,3790.5,0.9322]
[1753592162408,2.71108304,3791.2,3791.1,2.3455]
[1753592162604,3.14958304,3791.2,3791.1,2.87286]
[1753592163010,0.3107,3791.2,3791.1,2.87286]
[1753592164514,0.7492,3791.2,3791.1,2.87286]
[1753592165217,1.9182,3791.2,3791.1,2.3455]
[1753592165611,1.9182,3791.2,3791.1,2.87286]
[1753592166909,2.3161,3791.2,3791.1,2.87286]
[1753592167920,2.84345,3791.2,3791.1,2.87286]
[1753592168114,2.3161,3791.2,3791.1,2.87286]
[1753592168514,1.9182,3791.2,3791.1,2.87286]
[1753592168920,2.3161,3791.2,3791.1,2.87286]